bitfinex-derivatives/quotes_SOLF0:USTF0_20250703
["timestamp","ask_amount","ask_price","bid_price","bid_amount"]
[1751521968432,6.4174,155.78,155.75,6.4182]
[1751521968732,3.62391248,155.79,155.74,45.36]
[1751521970532,3.62391248,155.77,155.74,45.36]
[1751521971531,6.4184,155.75,155.74,45.36]
[1751521976736,6.4184,155.75,155.71,6.4199]
[1751521979038,6.4188,155.74,155.71,6.4199]
[1751521979231,3.62391248,155.77,155.71,6.4199]
[1751521979736,6.4186,155.75,155.71,6.4199]
[1751521982039,5.99751112,155.79,155.7,45.3]
[1751521982040,5.99751112,155.8,155.73,3.62391248]
[1751521982233,12.26219518,155.82,155.73,3.62391248]
[1751521982234,4.3609,155.82,155.77,3.62391248]
[1751521982433,4.3609,155.82,155.76,3.62391248]
[1751521982737,7.98481248,155.82,155.76,3.62391248]
[1751521983143,6.417,155.79,155.76,3.62391248]
[1751521984839,6.417,155.79,155.76,10.04191248]
[1751521985342,6.4172,155.78,155.76,3.62391248]
[1751521986243,6.4172,155.78,155.76,10.04191248]
[1751521987538,6.4168,155.79,155.76,10.04191248]
[1751521987743,6.4168,155.79,155.77,6.4175]
[1751521989343,6.4164,155.8,155.77,6.4175]
[1751521990544,6.4159,155.81,155.78,6.4168]
[1751521990842,5.88221248,155.84,155.76,3.62391248]
[1751521991040,11.87678039,155.84,155.76,3.62391248]
[1751521991243,6.4165,155.8,155.77,6.4176]
[1751521995047,6.4161,155.81,155.78,6.4171]
[1751521995349,3.62391248,155.83,155.78,6.4171]
[1751521996646,6.4161,155.81,155.78,6.4171]
[1751521999749,8.73602144,155.81,155.78,6.4171]
[1751521999947,2.31992144,155.81,155.77,45.3]
[1751522000351,6.4166,155.8,155.76,8.73762144]
[1751522000550,6.4166,155.8,155.76,242.91762144]
[1751522001254,8.73652144,155.8,155.76,242.91762144]
[1751522001748,6.4166,155.8,155.76,240.5977]
[1751522002051,6.4168,155.79,155.76,240.5977]
[1751522002352,6.4168,155.79,155.76,240.4977]
[1751522002758,3.62539491,155.82,155.74,6.4187]
[1751522002948,3.62539491,155.8,155.75,234.08]
[1751522003148,3.62539491,155.8,155.75,45.22]
[1751522003354,3.62539491,155.8,155.75,234.08]
[1751522003552,3.62539491,155.8,155.75,45.22]
[1751522003853,3.62539491,155.8,155.75,234.08]
[1751522004350,3.62539491,155.8,155.75,45.22]
[1751522004555,6.4169,155.79,155.76,6.4179]
[1751522006556,6.4169,155.79,155.75,240.4782]
[1751522006755,6.4172,155.78,155.75,240.4782]
[1751522006955,3.62539491,155.8,155.75,234.06]
[1751522007556,6.417,155.79,155.76,6.418]
[1751522007757,3.62539491,155.8,155.75,234.06]
[1751522008154,3.62539491,155.8,155.75,240.4781]
[1751522008356,5.99704443,155.83,155.75,234.06]
[1751522008556,3.62539491,155.82,155.75,234.06]
[1751522008856,6.4171,155.79,155.75,240.4782]
[1751522009053,3.62539491,155.8,155.75,240.4782]
[1751522009358,3.62539491,155.8,155.75,6.4182]
[1751522009556,3.62539491,155.8,155.75,240.4382]
[1751522010552,6.4172,155.78,155.75,240.4382]
[1751522010955,6.4172,155.78,155.75,6.4182]
[1751522011153,6.4172,155.78,155.76,188.8]
[1751522011856,6.4172,155.78,155.75,6.4182]
[1751522012058,6.4168,155.79,155.76,188.8]
[1751522012253,3.62539491,155.8,155.76,6.4179]
[1751522012451,3.62539491,155.8,155.76,195.1979]
[1751522012653,6.4166,155.8,155.76,195.1979]
[1751522013153,5.99788245,155.83,155.76,192.40539491]
[1751522013358,2.2583,155.84,155.76,192.40539491]
[1751522013558,5.88369491,155.84,155.76,192.40539491]
[1751522013756,6.4158,155.82,155.78,6.417]
[1751522015157,6.4161,155.81,155.78,6.417]
[1751522017659,11.88104104,155.84,155.78,6.417]
[1751522017660,6.4164,155.8,155.78,6.417]
[1751522018059,6.4164,155.8,155.77,6.4175]
[1751522019660,3.62539491,155.82,155.76,240.3778]
[1751522019962,3.62539491,155.8,155.76,45.22]
[1751522020156,6.4174,155.78,155.76,45.22]
[1751522021858,6.417,155.79,155.76,45.22]
[1751522023463,6.417,155.79,155.76,51.638]
[1751522023863,6.417,155.79,155.76,45.22]
[1751522024064,6.4172,155.78,155.76,45.22]
[1751522024969,6.4169,155.79,155.76,45.22]
[1751522025265,3.62539491,155.8,155.76,45.22]
[1751522026564,6.4172,155.78,155.76,45.22]
[1751522030462,6.4176,155.77,155.76,45.22]
[1751522031266,6.4176,155.77,155.73,3.62539491]
[1751522031470,6.4176,155.77,155.74,233.86]
[1751522031666,6.4176,155.77,155.74,240.2788]
[1751522031865,6.4176,155.77,155.75,2.32078903]
[1751522032670,8.73808903,155.78,155.75,2.32078903]
[1751522034072,6.4173,155.78,155.75,8.73888903]
[1751522034468,8.73768903,155.79,155.76,188.62]
[1751522034674,10.45504613,155.81,155.76,188.62]
[1751522034864,2.32078903,155.79,155.76,197.35868903]
[1751522035171,8.73788903,155.79,155.76,190.94078903]
[1751522035874,8.73788903,155.79,155.76,188.62]
[1751522036074,8.73788903,155.79,155.76,190.94078903]
[1751522037074,6.4165,155.8,155.77,2.32078903]
[1751522037979,6.4168,155.79,155.77,2.32078903]
[1751522038178,8.31813516,155.81,155.77,2.32078903]
[1751522038670,5.99734613,155.81,155.78,2.32078903]
[1751522039181,6.4165,155.8,155.78,2.32078903]
[1751522040479,6.4165,155.8,155.77,8.73828903]
[1751522040678,2.32078903,155.79,155.76,6.4177]
[1751522040878,2.32078903,155.78,155.76,233.72]
[1751522042584,8.73798903,155.78,155.76,233.72]
[1751522042882,2.32078903,155.79,155.76,236.04078903]
[1751522043078,2.32078903,155.79,155.76,47.46078903]
[1751522043274,6.00799753,155.81,155.78,2.32078903]
[1751522043582,8.32878656,155.82,155.78,2.32078903]
[1751522043776,6.00799753,155.82,155.76,237.32483666]
[1751522043982,3.62483666,155.81,155.76,233.7]
[1751522045588,6.417,155.79,155.76,233.68]
[1751522046087,6.4172,155.78,155.76,233.68]
[1751522047489,6.4169,155.79,155.76,233.68]
[1751522050092,6.4169,155.79,155.76,240.0979]
[1751522051287,6.4169,155.79,155.76,233.68]
[1751522051594,3.62483666,155.77,155.72,45.14]
[1751522051885,3.62483666,155.77,155.71,512.7396]
[1751522051886,3.62483666,155.73,155.71,508.28]
[1751522052086,3.62483666,155.73,155.69,45.14]
[1751522052287,3.62483666,155.73,155.7,188.48]
[1751522052487,10.04413666,155.73,155.7,188.48]
[1751522052886,10.04413666,155.73,155.69,51.5606]
[1751522053087,10.04413666,155.73,155.7,188.48]
[1751522053488,10.04393666,155.74,155.7,194.9004]
[1751522053698,10.04393666,155.74,155.7,6.4204]
[1751522053893,10.04393666,155.74,155.71,188.46]
[1751522054194,6.4193,155.73,155.71,188.46]
[1751522054695,3.62483666,155.74,155.71,188.46]
[1751522054696,6.419,155.74,155.71,188.46]
[1751522055892,10.04333666,155.75,155.71,194.8799]
[1751522056093,3.62483666,155.75,155.71,188.46]
[1751522056293,3.62483666,155.75,155.69,45.14]
[1751522056495,6.4191,155.74,155.7,194.8802]
[1751522057991,6.4191,155.74,155.71,188.48]
[1751522059897,6.4193,155.73,155.71,188.48]
[1751522061494,3.62483666,155.75,155.71,188.48]
[1751522061698,6.419,155.74,155.71,188.48]
[1751522063098,6.4193,155.73,155.71,188.48]
[1751522063796,8.74155615,155.73,155.71,188.48]
[1751522064697,2.32225615,155.73,155.65,5.88621686]
[1751522064899,2.32225615,155.73,155.7,2.32225615]
[1751522065098,8.74135615,155.74,155.7,197.18245615]
[1751522065299,2.32225615,155.74,155.7,197.18245615]
[1751522065900,2.32225615,155.74,155.7,8.74245615]
[1751522066100,2.32225615,155.74,155.7,197.18245615]
[1751522066297,10.32129753,155.78,155.72,2.32225615]
[1751522066603,2.32225615,155.77,155.74,2.32225615]
[1751522066898,2.32225615,155.77,155.73,2.32225615]
[1751522067495,6.4184,155.75,155.73,2.32225615]
[1751522068001,6.4184,155.75,155.72,2.32225615]
[1751522068402,6.419,155.74,155.72,2.32225615]
[1751522069101,6.4193,155.73,155.71,47.40225615]
[1751522069502,8.74125615,155.74,155.71,47.40225615]
[1751522069902,6.419,155.74,155.71,45.08]
[1751522070295,6.4193,155.73,155.71,45.08]
[1751522072007,6.4196,155.72,155.71,45.08]
[1751522072408,3.62809028,155.76,155.71,45.08]
[1751522073611,6.4196,155.73,155.71,45.08]
[1751522074907,6.4196,155.72,155.71,45.08]
[1751522075506,6.4194,155.73,155.71,45.08]
[1751522076710,6.4196,155.72,155.71,45.08]
[1751522077806,6.4202,155.71,155.68,6.5242]
[1751522078106,3.62809028,155.74,155.69,233.42]
[1751522078708,6.4205,155.7,155.69,45.08]
[1751522087515,6.4205,155.7,155.69,233.4]
[1751522089916,8.74363847,155.7,155.69,233.4]
[1751522090918,6.4205,155.7,155.69,45.08]
[1751522091119,8.74363847,155.7,155.69,45.08]
[1751522093520,6.4209,155.69,155.68,188.28]
[1751522093721,8.74403847,155.69,155.68,188.28]
[1751522095931,2.32313847,155.71,155.68,188.28]
[1751522096432,8.74343847,155.71,155.68,188.28]
[1751522098734,6.4207,155.7,155.68,188.28]
[1751522099636,2.32313847,155.7,155.68,188.28]
[1751522100432,6.4202,155.71,155.68,190.60313847]
[1751522100625,2.32313847,155.71,155.68,190.60313847]
[1751522100830,10.3801345,155.78,155.7,2.32313847]
[1751522101033,2.32313847,155.75,155.72,2.32313847]
[1751522101333,2.32313847,155.75,155.71,190.54313847]
[1751522102034,6.4188,155.74,155.72,1.60500338]
[1751522102333,6.4188,155.74,155.73,1.60500338]
[1751522103935,6.4188,155.74,155.71,190.54313847]
[1751522104133,6.4188,155.74,155.72,2.32313847]
[1751522104937,6.4188,155.74,155.71,188.22]
[1751522105137,6.4188,155.74,155.71,190.54313847]
[1751522105634,6.4192,155.73,155.72,2.32313847]
[1751522106028,6.4192,155.73,155.71,190.54313847]
[1751522106837,2.32313847,155.72,155.67,45.0]
[1751522107035,2.32313847,155.7,155.67,233.16]
[1751522107334,2.32313847,155.7,155.67,45.0]
[1751522107536,6.4211,155.69,155.67,45.0]
[1751522108635,8.74423847,155.69,155.67,45.0]
[1751522108832,5.9955345,155.77,155.68,2.32313847]
[1751522109036,2.32313847,155.79,155.75,2.32313847]
[1751522109233,2.32313847,155.79,155.76,2.32313847]
[1751522109538,6.4175,155.78,155.76,2.32313847]
[1751522109735,9.62113732,155.81,155.74,191.76560282]
[1751522110538,6.4175,155.78,155.74,198.18420282]
[1751522111839,9.62113732,155.81,155.74,188.14]
[1751522112439,6.4177,155.77,155.74,188.14]
[1751522115244,5.9955345,155.81,155.74,188.14]
[1751522115544,3.62560282,155.82,155.75,3.62560282]
[1751522115940,6.4173,155.78,155.75,3.62560282]
[1751522116545,6.4173,155.78,155.75,10.04400282]
[1751522118143,6.4173,155.78,155.76,1.60458794]
[1751522118346,6.4173,155.78,155.77,1.60458794]
[1751522120243,6.4177,155.77,155.74,188.14]
[1751522122648,6.4177,155.77,155.73,6.4191]
[1751522122945,6.4177,155.77,155.74,188.0]
[1751522123647,6.4177,155.77,155.73,51.3991]
[1751522123847,6.4177,155.77,155.74,187.98]
[1751522124048,6.4172,155.78,155.74,194.3988]
[1751522124348,3.62560282,155.79,155.74,194.3988]
[1751522125545,6.4173,155.78,155.74,194.3988]
[1751522127651,5.9955345,155.83,155.74,187.98]
[1751522127850,3.62560282,155.81,155.74,187.98]
[1751522128549,6.4168,155.79,155.75,6.4183]
[1751522129450,6.4172,155.78,155.75,6.4183]
[1751522136451,3.62560282,155.79,155.74,187.98]
[1751522137556,6.4173,155.78,155.74,194.3988]
[1751522139054,3.62560282,155.79,155.75,6.4183]
[1751522139357,3.62560282,155.82,155.74,191.60560282]
[1751522140958,6.4171,155.79,155.75,6.4181]
[1751522146067,6.4173,155.78,155.75,6.4181]
[1751522146665,6.4173,155.78,155.74,198.02420282]
[1751522147465,6.4173,155.78,155.75,6.4183]
[1751522149360,6.4169,155.79,155.75,6.4183]
[1751522150866,3.62586274,155.79,155.74,187.8]
[1751522151368,6.4178,155.77,155.74,187.8]
[1751522152164,6.4178,155.77,155.74,190.12093148]
[1751522152364,6.4178,155.77,155.74,2.32093148]
[1751522152565,6.4178,155.77,155.74,190.12093148]
[1751522153159,6.4178,155.77,155.74,190.12090936]
[1751522158269,2.32090936,155.77,155.72,5.90312222]
[1751522158469,67.15790551,155.84,155.74,2.32090936]
[1751522158470,2.32090936,155.78,155.74,2.32090936]
[1751522158665,5.99321268,155.8,155.77,2.32090936]
[1751522158873,5.99321268,155.81,155.78,187.76]
[1751522159172,8.31412204,155.82,155.78,187.76]
[1751522159364,14.72982204,155.82,155.78,196.49800936]
[1751522159765,12.40891268,155.82,155.78,194.1771]
[1751522160072,6.4157,155.82,155.78,194.1771]
[1751522160572,6.416,155.81,155.78,194.1771]
[1751522161768,3.62420985,155.82,155.78,187.76]
[1751522161968,3.62420985,155.8,155.73,44.84]
[1751522162172,6.01058965,155.81,155.73,44.84]
[1751522162173,3.62420985,155.78,155.73,44.84]
[1751522162473,3.62420985,155.75,155.73,44.84]
[1751522162673,3.62420985,155.75,155.7,187.72]
[1751522163068,3.62420985,155.77,155.7,187.72]
[1751522163272,2.3311,155.79,155.75,3.62420985]
[1751522163273,6.01058965,155.79,155.75,3.62420985]
[1751522163574,6.01058965,155.82,155.76,187.72]
[1751522163774,12.42638965,155.82,155.78,6.4171]
[1751522163969,6.01058965,155.82,155.76,187.72]
[1751522164166,6.416,155.81,155.77,6.4173]
[1751522164377,6.01058965,155.82,155.76,191.34420985]
[1751522164577,3.62420985,155.83,155.76,191.34420985]
[1751522164578,9.6347995,155.83,155.76,191.34420985]
[1751522165273,6.4158,155.82,155.78,6.4169]
[1751522165672,6.4159,155.81,155.78,6.4169]
[1751522165876,9.6347995,155.83,155.78,6.4169]
[1751522166376,6.4158,155.82,155.78,6.4169]
[1751522166679,9.6347995,155.83,155.78,6.4169]
[1751522167380,6.416,155.81,155.77,6.4174]
[1751522167572,9.6347995,155.83,155.76,191.34420985]
[1751522167774,3.62420985,155.79,155.74,44.84]
[1751522167974,3.62420985,155.77,155.7,44.84]
[1751522168174,3.62420985,155.77,155.71,187.68]
[1751522168476,3.62420985,155.77,155.7,232.52]
[1751522168678,6.4184,155.75,155.7,232.52]
[1751522168873,2.1925,155.78,155.7,232.52]
[1751522169178,5.81670985,155.78,155.71,3.62420985]
[1751522169477,5.81670985,155.78,155.71,191.30420985]
[1751522169677,6.4186,155.75,155.71,197.72410985]
[1751522170679,5.81670985,155.78,155.71,191.30420985]
[1751522171280,6.418,155.76,155.71,197.72380985]
[1751522172480,6.4184,155.75,155.71,197.72380985]
[1751522172677,3.62420985,155.78,155.72,6.4194]
[1751522173082,6.4184,155.76,155.72,6.4194]
[1751522174589,9.6347995,155.81,155.75,3.62420985]
[1751522175082,6.417,155.79,155.75,191.30420985]
[1751522175287,6.01058965,155.81,155.75,191.30420985]
[1751522175784,6.01058965,155.81,155.76,6.4179]
[1751522175988,6.01058965,155.81,155.75,191.30420985]
[1751522176491,6.01058965,155.81,155.75,236.14420985]
[1751522176790,6.417,155.79,155.75,242.56220985]
[1751522176993,6.417,155.79,155.75,236.14420985]
[1751522177587,6.417,155.79,155.75,232.52]
[1751522177792,9.6347995,155.81,155.75,232.52]
[1751522177995,9.6347995,155.81,155.75,44.84]
[1751522178188,6.01058965,155.8,155.75,44.84]
[1751522178383,6.4176,155.77,155.75,44.84]
[1751522182091,6.4173,155.78,155.75,51.2583]
[1751522182290,6.01058965,155.8,155.75,48.46420985]
[1751522182996,6.01058965,155.81,155.75,48.46420985]
[1751522183698,6.4168,155.79,155.76,6.4179]
[1751522184200,6.4168,155.79,155.75,54.88250985]
[1751522185097,6.4165,155.8,155.76,6.4178]
[1751522185301,6.4165,155.8,155.77,3.62420985]
[1751522186197,6.4165,155.8,155.77,10.04170985]
[1751522187000,6.4169,155.79,155.77,3.62420985]
[1751522187298,6.00122443,155.82,155.77,3.62420985]
[1751522187499,6.4166,155.8,155.77,10.04170985]
[1751522187797,6.00122443,155.82,155.75,44.84]
[1751522187998,6.4171,155.79,155.76,3.62420985]
[1751522189101,6.4171,155.79,155.76,10.04190985]
[1751522192499,6.4172,155.78,155.76,191.22420985]
[1751522193102,6.4169,155.79,155.76,197.64210985]
[1751522193806,6.4172,155.78,155.76,191.22420985]
[1751522194002,6.4172,155.78,155.76,187.6]
[1751522194405,6.4169,155.79,155.76,194.018]
[1751522196106,6.4165,155.8,155.76,194.018]
[1751522196307,9.62543428,155.82,155.76,187.58]
[1751522196809,6.4166,155.8,155.76,187.58]
[1751522197206,6.4161,155.81,155.75,48.40420985]
[1751522197409,6.4161,155.81,155.75,235.98420985]
[1751522198309,6.4161,155.81,155.77,6.4173]
[1751522201400,6.4164,155.8,155.77,6.4173]
[1751522204306,6.4168,155.79,155.77,6.4173]
[1751522205112,6.4165,155.8,155.77,6.4173]
[1751522207014,6.416,155.81,155.78,6.4171]
[1751522207512,6.4158,155.82,155.77,3.62420985]
[1751522207713,8.21832443,155.84,155.77,3.62420985]
[1751522208314,6.4163,155.81,155.78,6.4169]
[1751522210720,6.4157,155.82,155.78,6.4169]
[1751522211020,6.4157,155.82,155.79,6.4167]
[1751522211218,6.4162,155.81,155.77,3.62420985]
[1751522211623,11.84253428,155.84,155.77,3.62420985]
[1751522212022,6.4157,155.82,155.77,3.62420985]
[1751522212322,6.00122443,155.84,155.79,3.62420985]
[1751522212923,6.4152,155.83,155.79,10.04080985]
[1751522213826,6.4155,155.82,155.79,10.04080985]
[1751522214022,9.62543428,155.84,155.78,3.62420985]
[1751522215233,6.4152,155.83,155.79,6.4167]
[1751522215427,9.62543428,155.84,155.79,6.4167]
[1751522215626,6.4152,155.83,155.79,6.4167]
[1751522215828,6.00122443,155.84,155.78,10.04120985]
[1751522216427,9.62543428,155.84,155.78,10.04120985]
[1751522217133,6.4157,155.82,155.78,10.04120985]
[1751522217426,6.4157,155.82,155.78,6.417]
[1751522218430,6.416,155.81,155.77,10.04160985]
[1751522220030,11.92433428,155.84,155.75,6.4183]
[1751522220236,9.62543428,155.82,155.75,48.36420985]
[1751522220435,6.00122443,155.83,155.75,48.36420985]
[1751522220735,6.4165,155.8,155.76,6.4178]
[1751522221728,6.4165,155.8,155.77,6.4176]
[1751522222438,6.4165,155.8,155.76,6.4179]
[1751522222641,6.4168,155.79,155.76,6.4179]
[1751522222935,3.62420985,155.79,155.75,44.74]
[1751522223134,3.62420985,155.77,155.75,44.74]
[1751522223331,6.4185,155.75,155.71,44.74]
[1751522223526,6.4185,155.75,155.71,51.1597]
[1751522224535,6.4185,155.75,155.72,6.4195]
[1751522225034,6.4181,155.76,155.73,6.4192]
[1751522225231,14.01263428,155.79,155.71,48.36420985]
[1751522225735,6.4187,155.75,155.72,6.4195]
[1751522226536,6.4187,155.75,155.71,48.36420985]
[1751522226537,6.4188,155.74,155.71,54.78410985]
[1751522227639,3.62420985,155.77,155.71,48.36420985]
[1751522227939,6.4191,155.74,155.71,48.36420985]
[1751522228640,6.4194,155.73,155.71,48.36420985]
[1751522229341,6.4189,155.74,155.71,48.36420985]
[1751522229742,3.62420985,155.77,155.71,48.36420985]
[1751522230550,3.62420985,155.77,155.71,44.74]
[1751522231746,6.4186,155.75,155.71,44.74]
[1751522232149,6.4186,155.75,155.71,51.1598]
[1751522233044,6.4181,155.76,155.72,6.4194]
[1751522233348,3.62420985,155.77,155.72,6.4194]
[1751522233655,2.1418,155.78,155.72,6.4194]
[1751522233951,2.1418,155.78,155.72,10.04360985]
[1751522234151,4.3872,155.79,155.72,10.04360985]
[1751522234352,4.3872,155.79,155.74,10.04290985]
[1751522234553,4.3872,155.79,155.73,3.62420985]
[1751522234851,6.4178,155.77,155.73,10.04310985]
[1751522235153,4.3872,155.79,155.73,10.04310985]
[1751522235356,6.4178,155.77,155.73,10.04310985]
[1751522236150,4.3872,155.79,155.74,6.4188]
[1751522236352,15.62665871,155.84,155.77,3.62420985]
[1751522236353,6.00122443,155.82,155.77,3.62420985]
[1751522236656,6.00122443,155.84,155.79,3.62420985]
[1751522236849,6.416,155.81,155.79,3.62420985]
[1751522237354,6.4157,155.82,155.8,1.60434908]
[1751522237552,6.4157,155.82,155.81,1.60434908]
[1751522238357,6.4157,155.82,155.79,3.62420985]
[1751522242051,6.4159,155.81,155.79,3.62420985]
[1751522244957,6.4163,155.8,155.79,3.62420985]
[1751522245654,6.4163,155.8,155.77,10.04160985]
[1751522245851,3.62420985,155.81,155.71,5.8925047]
[1751522246056,3.62420985,155.81,155.73,3.62420985]
[1751522246255,6.4176,155.77,155.74,6.4185]
[1751522248357,6.418,155.76,155.74,6.4185]
[1751522248756,3.62420985,155.79,155.74,6.4185]
[1751522249559,6.4177,155.77,155.74,6.4185]
[1751522256664,6.418,155.76,155.73,10.04330985]
[1751522257258,3.62420985,155.8,155.74,6.4188]
[1751522257563,6.4177,155.77,155.74,6.4188]
[1751522259965,6.4177,155.77,155.75,6.4183]
[1751522260668,6.4173,155.78,155.75,6.4183]
[1751522265267,6.4176,155.77,155.74,6.4187]
[1751522265672,6.4181,155.76,155.73,10.04320985]
[1751522265864,3.62420985,155.77,155.72,44.72]
[1751522266469,6.4186,155.75,155.72,51.1396]
[1751522266663,3.62420985,155.77,155.72,44.72]
[1751522267670,6.4186,155.75,155.72,44.72]
[1751522269273,6.4186,155.75,155.72,51.1396]
[1751522271773,6.4188,155.74,155.72,44.72]
[1751522272169,3.62420985,155.78,155.72,44.72]
[1751522272370,6.4187,155.75,155.72,44.72]
[1751522274474,6.4187,155.75,155.72,51.1396]
[1751522274676,6.4189,155.74,155.72,44.72]
[1751522275279,6.4186,155.75,155.72,44.72]
[1751522275478,3.62420985,155.78,155.72,44.72]
[1751522275670,3.62420985,155.78,155.72,54.76340985]
[1751522275975,6.4182,155.76,155.72,54.76340985]
[1751522276279,6.4182,155.76,155.73,6.4192]
[1751522276579,2.3029,155.8,155.74,3.62420985]
[1751522276773,2.3029,155.8,155.73,3.62420985]
[1751522276971,3.62420985,155.79,155.73,10.04320985]
[1751522278078,6.4179,155.77,155.73,10.04320985]
[1751522278879,6.4179,155.77,155.74,6.4188]
[1751522280477,6.418,155.76,155.73,10.04320985]
[1751522280877,3.62420985,155.79,155.72,44.72]
[1751522281179,3.62420985,155.79,155.72,51.1395]
[1751522281180,6.4187,155.75,155.72,51.1395]
[1751522282379,3.62420985,155.79,155.72,44.72]
[1751522282580,3.62420985,155.79,155.73,3.62420985]
[1751522283685,6.4183,155.76,155.73,3.62420985]
[1751522283874,3.62420985,155.79,155.72,51.1394]
[1751522284378,6.4184,155.75,155.72,51.1394]
[1751522285182,6.4184,155.75,155.72,44.72]
[1751522285578,6.4188,155.74,155.71,10.04390985]
[1751522285783,9.61825698,155.79,155.71,3.62420985]
[1751522285982,3.62420985,155.77,155.71,3.62420985]
[1751522286382,6.4192,155.74,155.71,3.62420985]
[1751522286583,3.62420985,155.77,155.7,51.1004]
[1751522286584,9.61825698,155.77,155.7,44.68]
[1751522286884,3.62420985,155.75,155.7,44.68]
[1751522287082,6.4194,155.73,155.7,44.68]
[1751522287483,6.4194,155.73,155.7,51.1004]
[1751522287985,6.4194,155.73,155.7,44.68]
[1751522289385,6.4189,155.74,155.7,51.1003]
[1751522289585,5.93640985,155.76,155.7,51.1003]
[1751522290384,2.3122,155.76,155.7,51.1003]
[1751522290687,2.3122,155.76,155.7,44.68]
[1751522290889,3.62420985,155.75,155.7,44.68]
[1751522291291,3.62420985,155.73,155.67,5.89733598]
[1751522291588,3.62420985,155.73,155.66,556.68420985]
[1751522291790,6.4205,155.7,155.67,6.4216]
[1751522292990,6.4205,155.7,155.66,563.10620985]
[1751522293290,6.4205,155.7,155.66,556.68420985]
[1751522293788,6.4205,155.7,155.67,6.4214]
[1751522293986,6.4202,155.71,155.67,6.4214]
[1751522294888,6.4206,155.7,155.67,6.4214]
[1751522295397,6.4209,155.69,155.66,750.44620985]
[1751522295994,3.62420985,155.73,155.66,750.44620985]
[1751522295995,6.4206,155.7,155.67,6.4217]
[1751522299400,3.62420985,155.73,155.67,6.4217]
[1751522299801,2.32286418,155.71,155.67,8.74456418]
[1751522301302,2.32286418,155.71,155.68,2.32286418]
[1751522301504,4.5142,155.76,155.7,2.32286418]
[1751522301703,5.99621404,155.78,155.75,2.32286418]
[1751522301905,8.31907822,155.79,155.71,232.02]
[1751522302205,2.32286418,155.76,155.72,2.32286418]
[1751522302604,6.4186,155.75,155.72,8.74236418]
[1751522303907,6.4186,155.75,155.72,6.4195]
[1751522305408,3.62722043,155.77,155.71,232.02]
[1751522306207,6.4191,155.74,155.71,238.44]
[1751522307206,6.4191,155.74,155.71,232.02]
[1751522311812,6.4191,155.74,155.71,238.44]
[1751522312310,3.62722043,155.78,155.71,232.02]
[1751522312712,6.4182,155.76,155.72,6.4194]
[1751522313414,3.62722043,155.76,155.71,232.02]
[1751522314514,6.4191,155.74,155.71,238.44]
[1751522315115,6.4191,155.74,155.71,232.02]
[1751522315611,6.4191,155.74,155.71,238.44]
[1751522316010,3.62722043,155.76,155.71,238.44]
[1751522316218,3.62722043,155.78,155.71,235.64722043]
[1751522316711,6.4181,155.76,155.71,235.64722043]
[1751522317712,6.4181,155.76,155.73,6.419]
[1751522317912,6.4181,155.76,155.74,187.22]
[1751522318215,6.4177,155.77,155.74,193.6388]
[1751522318713,6.4184,155.75,155.74,187.22]
[1751522320114,6.4189,155.74,155.72,187.2]
[1751522320313,3.62722043,155.77,155.72,187.2]
[1751522320513,6.4186,155.75,155.72,187.2]
[1751522322915,6.4186,155.75,155.72,193.6196]
[1751522324919,6.4186,155.75,155.72,187.2]
[1751522325718,6.4188,155.74,155.71,54.74712043]
[1751522325910,6.4188,155.74,155.72,187.16]
[1751522326419,6.4188,155.74,155.71,238.2799]
[1751522327113,3.62722043,155.75,155.71,231.86]
[1751522327712,6.4192,155.74,155.71,231.86]
[1751522329321,6.4193,155.73,155.71,231.86]
[1751522330418,6.4193,155.73,155.71,44.7]
[1751522330619,6.4193,155.73,155.71,231.84]
[1751522331423,6.4196,155.72,155.71,231.84]
[1751522332322,6.4196,155.72,155.71,231.82]
[1751522334822,6.4196,155.72,155.71,44.7]
[1751522335017,6.4202,155.71,155.67,44.64]